fUSD/lending_fUSD_20240425
["ID","MTS","AMOUNT","RATE_DAILY","PERIOD"]
[323545658,1714080660642,-500.0,0.0001178,2]
[323545659,1714080660652,-502.45,0.0001178,2]
[323545660,1714080660661,-765.12,0.0001178,2]
[323545661,1714080660670,-500.0,0.0001178,2]
[323545662,1714080660680,-540.17124405,0.0001178,2]
[323545663,1714080660689,-500.0,0.0001178,2]
[323545664,1714080660698,-8090.07,0.0001178,2]
[323545665,1714080660707,-500.0,0.0001178,2]
[323545666,1714080660716,-500.0,0.0001178,2]
[323545667,1714080660727,-500.0,0.0001178,2]
[323545668,1714080660737,-1572.19,0.0001178,2]
[323545669,1714080660746,-2319.64,0.0001178,2]
[323545670,1714080660756,-1249.15,0.0001178,2]
[323545671,1714080660765,-1138.02,0.0001178,2]
[323545672,1714080660775,-504.84836741,0.0001178,2]
[323545673,1714080660784,-500.0,0.0001178,2]
[323545674,1714080660793,-500.0,0.0001178,2]
[323545675,1714080660803,-1373.13,0.0001178,2]
[323545676,1714080660812,-646.82,0.0001178,2]
[323545677,1714080660822,-4659.58,0.0001178,2]
[323545678,1714080660832,-886.17,0.0001178,2]
[323545679,1714080660842,-1226.99,0.0001178,2]
[323545680,1714080660852,-1134.99,0.0001178,2]
[323545681,1714080660861,-500.0,0.0001178,2]
[323545682,1714080660871,-9497.36,0.0001178,2]
[323545683,1714080660880,-523.69,0.0001178,2]
[323545684,1714080660890,-262.80777145,0.0001178,2]
[323545685,1714080660899,-500.0,0.0001178,2]
[323545686,1714080660909,-500.0,0.0001178,2]
[323545687,1714080660918,-809.32,0.0001178,2]
[323545688,1714080660927,-1106.96,0.0001178,2]
[323545689,1714080660937,-1314.86,0.0001178,2]
[323545690,1714080660946,-500.0,0.0001178,2]
[323545691,1714080660955,-704.8,0.0001178,2]
[323545692,1714080660964,-834.43,0.0001178,2]
[323545693,1714080660974,-500.0,0.0001178,2]
[323545694,1714080660983,-1189.55,0.0001178,2]
[323545695,1714080660992,-500.0,0.0001178,2]
[323545696,1714080661001,-500.0,0.0001178,2]
[323545697,1714080661010,-1383.71,0.0001178,2]
[323545698,1714080661020,-1756.87,0.0001178,2]
[323545699,1714080661029,-1264.18,0.0001178,2]
[323545700,1714080661038,-4390.51,0.0001178,2]
[323545701,1714080661048,-674.2,0.0001178,2]
[323545702,1714080661059,-500.0,0.0001178,2]
[323545703,1714080661069,-500.0,0.0001178,2]
[323545704,1714080661078,-510.34612289,0.0001178,2]
[323545705,1714080661087,-500.0,0.0001178,2]
[323545706,1714080661097,-2386.26,0.0001178,2]
[323545707,1714080661106,-500.0,0.0001178,2]
[323545708,1714080661116,-1647.79,0.0001178,2]
[323545709,1714080661125,-500.0,0.0001178,2]
[323545710,1714080661135,-776.59,0.0001178,2]
[323545711,1714080661145,-2185.12,0.0001178,2]
[323545712,1714080661154,-500.0,0.0001178,2]
[323545713,1714080661164,-500.0,0.0001178,2]
[323545714,1714080661175,-500.0,0.0001178,2]
[323545715,1714080661185,-500.0,0.0001178,2]
[323545716,1714080661194,-1418.4,0.0001178,2]
[323545717,1714080661204,-12524.16,0.0001178,2]
[323545718,1714080661213,-1640.7,0.0001178,2]
[323545719,1714080661222,-500.0,0.0001178,2]
[323545720,1714080661232,-834.26,0.0001178,2]
[323545721,1714080661241,-500.0,0.0001178,2]
[323545722,1714080661251,-500.0,0.0001178,2]
[323545723,1714080661260,-500.0,0.0001178,2]
[323545724,1714080661269,-2149.82,0.0001178,2]
[323545725,1714080661279,-500.0,0.0001178,2]
[323545726,1714080661288,-500.0,0.0001178,2]
[323545727,1714080661298,-2225.49,0.0001178,2]
[323545728,1714080661309,-500.0,0.0001178,2]
[323545729,1714080661318,-3310.47,0.0001178,2]
[323545730,1714080661328,-500.0,0.0001178,2]
[323545731,1714080661337,-736.51,0.0001178,2]
[323545732,1714080661347,-1159.51,0.0001178,2]
[323545733,1714080661356,-500.0,0.0001178,2]
[323545734,1714080661366,-500.0,0.0001178,2]
[323545735,1714080661375,-500.0,0.0001178,2]
[323545736,1714080661385,-2668.16,0.0001178,2]
[323545737,1714080661395,-746.14,0.0001178,2]
[323545738,1714080661404,-2716.71,0.0001178,2]
[323545739,1714080661414,-500.0,0.0001178,2]
[323545740,1714080661423,-500.0,0.0001178,2]
[323545741,1714080661432,-500.0,0.0001178,2]
[323545742,1714080661442,-500.0,0.0001178,2]
[323545743,1714080661451,-630.93,0.0001178,2]
[323545744,1714080661460,-500.0,0.0001178,2]
[323545745,1714080661470,-500.0,0.0001178,2]
[323545746,1714080661479,-1366.68,0.0001178,2]
[323545747,1714080661489,-1628.53,0.0001178,2]
[323545748,1714080661499,-657.7,0.0001178,2]
[323545749,1714080661510,-2570.45,0.0001178,2]
[323545750,1714080661528,-500.0,0.0001178,2]
[323545751,1714080661537,-1656.95,0.0001178,2]
[323545752,1714080661547,-500.0,0.0001178,2]
[323545753,1714080661557,-500.0,0.0001178,2]
[323545754,1714080661566,-763.84,0.0001178,2]
[323545755,1714080661575,-936.27,0.0001178,2]
[323545756,1714080661585,-937.43,0.0001178,2]
[323545757,1714080661595,-524.02,0.0001178,2]
[323545758,1714080661604,-19843.31,0.0001178,2]
[323545759,1714080661614,-757.44,0.0001178,2]
[323545760,1714080661623,-2946.07,0.0001178,2]
[323545761,1714080661632,-3824.28,0.0001178,2]
[323545762,1714080661641,-8720.88,0.0001178,2]
[323545763,1714080661651,-910.21,0.0001178,2]
[323545764,1714080661661,-500.0,0.0001178,2]
[323545765,1714080661670,-712.96,0.0001178,2]
[323545766,1714080661680,-500.0,0.0001178,2]
[323545767,1714080661689,-3945.49,0.0001178,2]
[323545768,1714080661698,-500.0,0.0001178,2]
[323545769,1714080661709,-710.77,0.0001178,2]
[323545770,1714080661718,-500.0,0.0001178,2]
[323545771,1714080661727,-1258.76,0.0001178,2]
[323545772,1714080661737,-1246.27,0.0001178,2]
[323545773,1714080661746,-500.0,0.0001178,2]
[323545774,1714080661756,-1283.91,0.0001178,2]
[323545775,1714080661765,-902.68,0.0001178,2]
[323545776,1714080661774,-500.0,0.0001178,2]
[323545777,1714080661784,-1335.71,0.0001178,2]
[323545778,1714080661793,-2067.13,0.0001178,2]
[323545779,1714080661804,-2358.04,0.0001178,2]
[323545780,1714080661813,-5704.72,0.0001178,2]
[323545781,1714080661822,-500.0,0.0001178,2]
[323545782,1714080661831,-500.0,0.0001178,2]
[323545783,1714080661841,-500.0,0.0001178,2]
[323545784,1714080661850,-708.39,0.0001178,2]
[323545785,1714080661991,-620.87,0.0001178,2]
[323545786,1714080662001,-1042.68,0.0001178,2]
[323545787,1714080662010,-1148.81,0.0001178,2]
[323545788,1714080662019,-918.53,0.0001178,2]
[323545789,1714080662029,-864.23,0.0001178,2]
[323545790,1714080662038,-500.0,0.0001178,2]
[323545791,1714080662047,-508.19,0.0001178,2]
[323545792,1714080662057,-1110.31,0.0001178,2]
[323545793,1714080662066,-895.22,0.0001178,2]
[323545794,1714080662075,-1782.03,0.0001178,2]
[323545795,1714080662085,-1268.69,0.0001178,2]
[323545796,1714080662094,-500.0,0.0001178,2]
[323545797,1714080662103,-3409.74,0.0001178,2]
[323545798,1714080662113,-5291.88,0.0001178,2]
[323545799,1714080662122,-4048.42,0.0001178,2]
[323545800,1714080662131,-500.0,0.0001178,2]
[323545801,1714080662141,-1248.38,0.0001178,2]
[323545802,1714080662150,-924.37,0.0001178,2]
[323545803,1714080662159,-1387.42,0.0001178,2]
[323545804,1714080662169,-848.96,0.0001178,2]
[323545805,1714080662178,-4000.28,0.0001178,2]
[323545806,1714080662187,-500.0,0.0001178,2]
[323545807,1714080662197,-532.83,0.0001178,2]
[323545808,1714080662206,-1399.75,0.0001178,2]
[323545809,1714080662216,-680.73,0.0001178,2]
[323545810,1714080662226,-719.22,0.0001178,2]
[323545811,1714080662237,-500.0,0.0001178,2]
[323545812,1714080662247,-1327.22,0.0001178,2]
[323545813,1714080662257,-500.0,0.0001178,2]
[323545814,1714080662266,-1935.44,0.0001178,2]
[323545815,1714080662276,-653.71,0.0001178,2]
[323545816,1714080662285,-427.64626648,0.0001178,2]
[323545817,1714080662294,-500.0,0.0001178,2]
[323545818,1714080662304,-2632.01,0.0001178,2]
[323545819,1714080662313,-500.0,0.0001178,2]
[323545820,1714080662323,-500.0,0.0001178,2]
[323545821,1714080662332,-2791.77,0.0001178,2]
[323545822,1714080662342,-616.15,0.0001178,2]
[323545823,1714080662351,-2007.13,0.0001178,2]
[323545824,1714080662360,-637.02,0.0001178,2]
[323545825,1714080662369,-500.0,0.0001178,2]
[323545826,1714080662379,-760.56,0.0001178,2]
[323545827,1714080662388,-1507.65,0.0001178,2]
[323545828,1714080662397,-1029.34,0.0001178,2]
[323545829,1714080662406,-500.0,0.0001178,2]
[323545830,1714080662416,-500.0,0.0001178,2]
[323545831,1714080662425,-500.0,0.0001178,2]
[323545832,1714080662435,-500.35,0.0001178,2]
[323545833,1714080662445,-500.0,0.0001178,2]
[323545834,1714080662454,-500.0,0.0001178,2]
[323545835,1714080662463,-500.0,0.0001178,2]
[323545836,1714080662473,-6288.41,0.0001178,2]
[323545837,1714080662482,-500.0,0.0001178,2]
[323545838,1714080662491,-3879.23,0.0001178,2]
[323545839,1714080662501,-500.0,0.0001178,2]
[323545840,1714080662510,-500.0,0.0001178,2]
[323545841,1714080662526,-2519.04,0.0001178,2]
[323545842,1714080662536,-864.19,0.0001178,2]
[323545843,1714080662545,-856.53,0.0001178,2]
[323545844,1714080662554,-500.0,0.0001178,2]
[323545845,1714080662564,-3702.09,0.0001178,2]
[323545846,1714080662574,-630.95,0.0001178,2]
[323545847,1714080662583,-500.0,0.0001178,2]
[323545848,1714080662593,-1737.92,0.0001178,2]
[323545849,1714080662603,-1303.57,0.0001178,2]
[323545850,1714080662613,-795.74,0.0001178,2]
[323545851,1714080662622,-3277.12,0.0001178,2]
[323545852,1714080662631,-500.0,0.0001178,2]
[323545853,1714080662640,-1859.25,0.0001178,2]
[323545854,1714080662649,-983.89,0.0001178,2]
[323545855,1714080662658,-540.52,0.0001178,2]
[323545856,1714080662667,-500.0,0.0001178,2]
[323545857,1714080662675,-555.98,0.0001178,2]
[323545858,1714080662685,-150.0,0.00011785,2]
[323545859,1714080662694,-150.0,0.00011786,2]
[323545860,1714080662703,-150.0,0.00011788,2]
[323545861,1714080662712,-150.0,0.0001179,2]
[323545862,1714080662721,-150.0,0.0001179,2]
[323545863,1714080662730,-431.76522684,0.0001179,2]
[323545864,1714080662740,-183.97237666,0.0001179,2]
[323545865,1714080662749,-425.58202119,0.0001179,2]
[323545866,1714080662757,-150.0,0.00011792,2]
[323545867,1714080662766,-150.0,0.00011792,2]
[323545868,1714080662776,-150.0,0.00011793,2]
[323545869,1714080662785,-150.0,0.00011795,2]
[323545870,1714080662794,-150.0,0.00011796,2]
[323545871,1714080662803,-150.0,0.00011796,2]
[323545872,1714080662812,-150.0,0.00011798,2]
[323545873,1714080662821,-150.0,0.00011799,2]
[323545874,1714080662830,-150.0,0.00011803,2]
[323545875,1714080662839,-9250.43733269,0.00011805,2]
[323545876,1714080662848,-150.0,0.00011805,2]
[323545877,1714080662857,-150.0,0.0001181,2]
[323545878,1714080662866,-150.0,0.00011812,2]
[323545879,1714080662880,-150.0,0.00011816,2]
[323545880,1714080662902,-150.0,0.00011819,2]
[323545881,1714080662918,-150.0,0.00011819,2]
[323545882,1714080662937,-150.0,0.00011821,2]
[323545883,1714080662955,-150.0,0.00011821,2]
[323545884,1714080662972,-150.0,0.00011823,2]
[323545885,1714080662989,-150.0,0.00011826,2]
[323545886,1714080663005,-150.0,0.00011827,2]
[323545887,1714080663024,-150.0,0.00011837,2]
[323545888,1714080663042,-150.0,0.00011842,2]
[323545889,1714080663059,-150.0,0.00011842,2]
[323545890,1714080663077,-150.0,0.00011848,2]
[323545891,1714080663097,-150.0,0.00011852,2]
[323545892,1714080663110,-150.0,0.00011853,2]
[323545893,1714080663123,-150.0,0.00011855,2]
[323545894,1714080663148,-150.0,0.00011864,2]
[323545895,1714080663162,-150.0,0.00011865,2]
[323545896,1714080663181,-150.0,0.00011865,2]
[323545897,1714080663200,-150.0,0.00011865,2]
[323545898,1714080663218,-150.0,0.00011866,2]
[323545899,1714080663235,-150.0,0.00011867,2]
[323545900,1714080663252,-150.0,0.00011871,2]
[323545901,1714080663269,-150.0,0.00011879,2]
[323545902,1714080663285,-172.68675682,0.0001188,2]
[323545903,1714080663300,-150.0,0.0001188,2]
[323545904,1714080663316,-2979.94258,0.0001188,2]
[323545905,1714080663331,-150.0,0.00011883,2]
[323545906,1714080663347,-150.0,0.00011889,2]
[323545907,1714080663363,-406.07683334,0.000119,2]
[323545908,1714080663379,-803.52732678,0.000119,2]
[323545909,1714080663396,-500.0,0.000119,2]
[323545910,1714080663411,-56347.88588505,0.000119,2]
[323545911,1714080663426,-431.76522684,0.000119,2]
[323545912,1714080663441,-183.97237666,0.000119,2]
[323545913,1714080663457,-425.58202119,0.000119,2]
[323545914,1714080663473,-1000.0,0.00011904,2]
[323545915,1714080663488,-500.0,0.00011904,2]
[323545916,1714080663502,-9250.43733269,0.00011904,2]
[323545917,1714080663520,-610.0,0.00011908,2]
[323545918,1714080663537,-214.0,0.00011908,2]
[323545919,1714080663553,-462.0,0.00011908,2]
[323545920,1714080663569,-2296.0,0.00011908,2]
[323545921,1714080663588,-1394.0,0.00011908,2]
[323545922,1714080663604,-970.0,0.00011908,2]
[323545923,1714080663619,-1055.0,0.00011908,2]
[323545924,1714080663635,-1227.0,0.00011908,2]
[323545925,1714080663651,-243.77698425,0.00011989,2]
[323545926,1714080663666,-5643.853253,0.0001199,2]
[323545927,1714080663680,-1994.0361085,0.0001199,2]
[323545928,1714080663695,-3960.6179911,0.0001199,2]
[323545929,1714080663711,-1972.2911156,0.0001199,2]
[323545930,1714080663726,-5547.8796474,0.00011992,2]
[323545931,1714080663740,-5451.9060417,0.00011992,2]
[323545932,1714080663754,-5355.932436,0.00011992,2]
[323545933,1714080663769,-5259.9588303,0.00011992,2]
[323545934,1714080663783,-1960.1275665,0.00011992,2]
[323545935,1714080663798,-1926.2190245,0.00011992,2]
[323545936,1714080663812,-1892.3104825,0.00011992,2]
[323545937,1714080663826,-1858.4019404,0.00011992,2]
[323545938,1714080663840,-4329.3382459,0.00011992,2]
[323545939,1714080663855,-4698.0585007,0.00011992,2]
[323545940,1714080663869,-5066.7787555,0.00011992,2]
[323545941,1714080663884,-5435.4990103,0.00011992,2]
[323545942,1714080663898,-2155.9048052,0.00011992,2]
[323545943,1714080663913,-2339.5184949,0.00011992,2]
[323545944,1714080663928,-2523.1321845,0.00011992,2]
[323545945,1714080663944,-2706.7458742,0.00011992,2]
[323545946,1714080663959,-404.76437198,0.00011998,2]
[323545947,1714080663973,-2321.35455575,0.00011998,2]
[323545948,1714080663989,-2359.48463868,0.00011998,2]
[323545949,1714080664004,-873.32290242,0.00011998,2]
[323545950,1714080664019,-204.9782178,0.00011998,2]
[323545951,1714080664034,-408.04988804,0.00011998,2]
[323545952,1714080664048,-1081.2652538,0.00011998,2]
[323545953,1714080664064,-192.32263462,0.00011998,2]
[323545954,1714080664078,-197.58004724,0.00011998,2]
[323545955,1714080664092,-7067.07589002,0.00011998,2]
[323545956,1714080664107,-255.3668917,0.00011998,2]
[323545957,1714080664121,-155.0,0.00011998,2]
[323545958,1714080664137,-155.04694753,0.00011998,2]
[323545959,1714080664152,-155.0,0.00011998,2]
[323545960,1714080664166,-1760.85491199,0.00011998,2]
[323545961,1714080664181,-286.32224343,0.00011998,2]
[323545962,1714080664195,-263.17762148,0.00011998,2]
[323545963,1714080664210,-210.40439846,0.00011998,2]
[323545964,1714080664224,-989.90938697,0.00011998,2]
[323545965,1714080664239,-500.0,0.00011998,2]
[323545966,1714080664255,-500.0,0.00011998,2]
[323545967,1714080664271,-500.0,0.00011998,2]
[323545968,1714080664285,-185.47764417,0.00011999,2]
[323545969,1714080664294,-4083.40274151,0.00011999,2]
[323545970,1714080664305,-1399650.89537504,0.00011999,2]
[323545971,1714080664314,-151.0,0.00011999,2]
[323545972,1714080664324,-367.44092,0.00011999,2]
[323545973,1714080664546,-367.44092,0.00011999,2]
[323545974,1714080664558,-746319.4469073,0.00012,2]
[323545975,1714080665009,-1327.3,0.00012,2]
[323545976,1714080665056,-0.00140614,0.00012,2]
[323545977,1714080665068,-260.47150784,0.00012,2]
[323545978,1714080665079,-1624.20869898,0.00012,2]
[323545979,1714080665117,-19778.08680853,0.00012,2]
[323545980,1714080665394,-1578.71698897,0.00012,2]
[323545981,1714080665406,-1889.5215,0.00012,2]
[323545982,1714080665418,-1295.6862,0.00012,2]
[323545983,1714080665430,-953.56826015,0.00012,2]
[323545984,1714080665446,-774.1338722,0.00012,2]
[323545985,1714080665458,-806.12553537,0.00012,2]
[323545986,1714080665469,-3325.0,0.00012,2]
[323545987,1714080665481,-667.64361252,0.00012,2]
[323545988,1714080665493,-562.35910766,0.00012,2]
[323545989,1714080665603,-611765.70941844,0.00012,2]
[323545990,1714080665616,-3218196.20022297,0.00012,2]
[323545991,1714080665628,-259331.60267536,0.00012,2]
[323545992,1714080665640,-1133.07,0.00012,2]
[323545993,1714080665651,-308.27179912,0.00012,2]
[323545994,1714080665664,-596.12154197,0.00012,2]
[323545995,1714080666375,-1033.65,0.00010958,2]
[323545996,1714080666386,-203.13639359,0.00010958,2]
[323545997,1714080666414,-296.86360641,0.00010958,2]
[323545998,1714080666423,-713.63639609,0.00011232,2]
[323545999,1714080666435,-320.01360391,0.00011232,2]
[323546000,1714080666445,-500.0,0.00011232,2]
[323546001,1714080666455,-212.57604396,0.00011506,2]
[323546002,1714080666491,-500.0,0.00010958,2]
[323546003,1714080666500,-269.34473658,0.00011506,2]
[323546004,1714080667711,-500.0,0.00010958,2]
[323546005,1714080667722,-500.0,0.00010958,2]
[323546006,1714080667732,-500.0,0.00010958,2]
[323546007,1714080667741,-500.0,0.00010958,2]
[323546008,1714080667751,-500.0,0.00010958,2]
[323546009,1714080667760,-219.44,0.00011232,2]
[323546010,1714080667770,-500.0,0.00011232,2]
[323546011,1714080667780,-500.0,0.00011232,2]
[323546012,1714080667790,-551.72921946,0.00011506,2]
[323546013,1714080667799,-410.16,0.00011506,2]
[323546014,1714080667810,-500.0,0.00011506,2]
[323546015,1714080667820,-296.06,0.00011506,2]
[323546016,1714080667829,-1033.65,0.0001178,2]
[323546017,1714080667840,-500.0,0.0001178,2]
[323546018,1714080667849,-5751.22593821,0.00012,2]
[323546019,1714080667870,-455.02507088,0.00012,2]
[323546020,1714080667882,-1628.1339696,0.00012,2]
[323546021,1714080667906,-500.0,0.00011232,2]
[323546022,1714080667916,-144.70431179,0.00012,2]
[323546023,1714080667928,-491.92205385,0.00012,2]
[323546024,1714080667943,-2314.76,0.00012,2]
[323546025,1714080667971,-644.08,0.00010958,2]
[323546026,1714080667980,-2336.54715847,0.00012,2]
[323546027,1714080667992,-2486.86760694,0.00012,2]
[323546028,1714080733303,165.0,0.000256,120]
[323546029,1714080814511,166.92778428,0.000256,120]
[323546030,1714080838904,907.79,8.219e-05,2]
[323546032,1714081088449,10000.0,0.00025975,90]
[323546033,1714081103167,10000.0,0.00025975,90]
[323546034,1714081124019,10000.0,0.00025975,90]
[323546035,1714081148513,10000.0,0.00025975,90]
[323546036,1714081182390,8942.99999904,0.00025975,90]
[323546037,1714081403215,906.81,8.219e-05,2]
[323546038,1714081550184,3184.18,0.0002375,60]
[323546044,1714081831844,-404.84019518,9.089e-05,2]
[323546045,1714081831854,-745.808244,9.09e-05,2]
[323546046,1714081831863,-782.56535132,9.133e-05,2]
[323546047,1714081831878,-293.43812873,9.133e-05,2]
[323546048,1714081832099,-709.56657955,9.133e-05,2]
[323546049,1714081832129,-5557.39078109,9.133e-05,2]
[323546050,1714081832139,-2199.11679511,9.134e-05,2]
[323546052,1714081832243,-123.09165738,9.134e-05,2]
[323546054,1714081832252,-133.81813725,9.134e-05,2]
[323546056,1714081832264,-274.71555114,9.134e-05,2]
[323546058,1714081832273,-967.84164303,9.135e-05,2]
[323546061,1714081832282,-234.38745645,9.137e-05,2]
[323546090,1714081837889,-167.40337534,9.088e-05,2]
[323546092,1714081837899,-946.05777059,9.137e-05,2]
[323546094,1714081837911,-3520.66396125,9.137e-05,2]
[323546099,1714081837945,-657.76259654,9.137e-05,2]
[323546106,1714081838002,-579.94470136,9.137e-05,2]
[323546114,1714081838065,-103194.93612681,9.137e-05,2]
[323546116,1714081838075,-150.0,9.234e-05,2]
[323546118,1714081838086,-1507.02137576,9.283e-05,2]
[323546120,1714081838096,-150.0,9.315e-05,2]
[323546122,1714081838106,-156.64,9.418e-05,2]
[323546124,1714081838115,-9673.28,9.456e-05,2]
[323546126,1714081838125,-200.0,9.482e-05,2]
[323546128,1714081838135,-2133.87,9.49e-05,2]
[323546130,1714081838145,-250.0,9.574e-05,2]
[323546132,1714081838155,-200.02,9.598e-05,2]
[323546134,1714081838165,-166.49,9.612e-05,2]
[323546136,1714081838175,-150.99,9.67e-05,2]
[323546138,1714081838185,-499.99,9.67e-05,2]
[323546140,1714081838195,-995.84,9.901e-05,2]
[323546142,1714081838204,-156.64,9.909e-05,2]
[323546144,1714081838214,-210.0,0.00010157,2]
[323546146,1714081838223,-151.86951755,0.00010202,2]
[323546148,1714081838232,-151.86951751,0.00010275,2]
[323546151,1714081838242,-151.86951751,0.00010348,2]
[323546154,1714081838252,-1719.9416,0.00010356,2]
[323546157,1714081838261,-151.86951751,0.00010421,2]
[323546160,1714081838271,-906.81,0.00010451,2]
[323546162,1714081838281,-33534.72498322,0.00010478,2]
[323546163,1714081838290,-151.86951751,0.00010494,2]
[323546165,1714081838299,-151.86951751,0.00010566,2]
[323546168,1714081838309,-151.86951751,0.00010639,2]
[323546170,1714081838318,-151.63,0.00010652,2]
[323546172,1714081838327,-500.0,0.00010658,2]
[323546174,1714081838337,-151.63,0.00010661,2]
[323546177,1714081838346,-200.0,0.00010667,2]
[323546178,1714081838355,-151.63,0.00010669,2]
[323546180,1714081838364,-151.63,0.00010678,2]
[323546182,1714081838374,-151.63,0.00010687,2]
[323546184,1714081838383,-151.63,0.00010696,2]
[323546187,1714081838393,-151.63,0.00010705,2]
[323546188,1714081838402,-151.86951751,0.00010712,2]
[323546190,1714081838411,-2500.0,0.00010758,2]
[323546193,1714081838421,-151.86951751,0.00010785,2]
[323546195,1714081838431,-155.0,0.00010797,2]
[323546196,1714081838440,-700.0,0.000108,3]
[323546198,1714081838449,-151.86951751,0.00010858,2]
[323546200,1714081838459,-264.34908719,0.00010858,2]
[323546203,1714081838468,-202.20660029,0.00010858,2]
[323546205,1714081838478,-1000.0,0.00010858,2]
[323546206,1714081838488,-40044.6051,0.00010858,2]
[323546207,1714081838497,-100000.0,0.00010858,2]
[323546208,1714081838506,-1500.0,0.000109,3]
[323546209,1714081838515,-989.90938697,0.00010956,2]
[323546210,1714081838525,-210.40439846,0.00010956,2]
[323546211,1714081838535,-263.17762148,0.00010956,2]
[323546212,1714081838544,-559.09735674,0.00010956,2]
[323546213,1714081838553,-286.32224343,0.00010956,2]
[323546214,1714081838563,-155.39161747,0.00010956,2]
[323546215,1714081838572,-155.0,0.00010956,2]
[323546216,1714081838582,-155.0,0.00010956,2]
[323546217,1714081838591,-255.3668917,0.00010956,2]
[323546218,1714081838602,-155.0,0.00010956,2]
[323546219,1714081838612,-1760.85491199,0.00010956,2]
[323546220,1714081838624,-155.04694753,0.00010956,2]
[323546221,1714081838633,-204.9782178,0.00010956,2]
[323546222,1714081838643,-873.32290242,0.00010956,2]
[323546223,1714081838653,-2359.48463868,0.00010956,2]
[323546224,1714081838662,-384.66604691,0.00010956,2]
[323546225,1714081838672,-229.84328682,0.00010958,2]
[323546226,1714081838682,-500.0,0.00010958,2]
[323546227,1714081838691,-500.0,0.00010958,2]
[323546228,1714081838701,-500.0,0.00010958,2]
[323546229,1714081838710,-603.13021023,0.00010958,2]
[323546230,1714081838720,-1110.67,0.00010958,2]
[323546231,1714081838729,-500.0,0.00010958,2]
[323546232,1714081838739,-500.0,0.00010958,2]
[323546233,1714081838748,-507.0342366,0.00010958,2]
[323546234,1714081838758,-500.0,0.00010958,2]
[323546235,1714081838767,-500.0,0.00010958,2]
[323546236,1714081838776,-500.0,0.00010958,2]
[323546237,1714081838786,-500.0,0.00010958,2]
[323546238,1714081838795,-502.49970828,0.00010958,2]
[323546239,1714081838805,-457.40214613,0.00010958,2]
[323546240,1714081838814,-500.0,0.00010958,2]
[323546241,1714081838824,-500.0,0.00010958,2]
[323546242,1714081838834,-500.0,0.00010958,2]
[323546243,1714081838844,-500.0,0.00010958,2]
[323546244,1714081838856,-500.0,0.00010958,2]
[323546245,1714081838866,-500.0,0.00010958,2]
[323546246,1714081838880,-505.36426002,0.00010958,2]
[323546247,1714081838890,-500.0,0.00010958,2]
[323546248,1714081838899,-500.0,0.00010958,2]
[323546249,1714081838909,-500.0,0.00010958,2]
[323546250,1714081838920,-500.0,0.00010958,2]
[323546251,1714081838930,-500.0,0.00010958,2]
[323546252,1714081838939,-500.0,0.00010958,2]
[323546253,1714081838950,-500.0,0.00010958,2]
[323546254,1714081838959,-500.0,0.00010958,2]
[323546255,1714081838969,-500.0,0.00010958,2]
[323546256,1714081838978,-500.0,0.00010958,2]
[323546257,1714081838988,-500.0,0.00010958,2]
[323546258,1714081838997,-500.0,0.00010958,2]
[323546259,1714081839006,-500.0,0.00010958,2]
[323546260,1714081839016,-500.0,0.00010958,2]
[323546261,1714081839025,-500.0,0.00010958,2]
[323546262,1714081839035,-500.0,0.00010958,2]
[323546263,1714081839044,-500.0,0.00010958,2]
[323546264,1714081839054,-500.0,0.00010958,2]